fUSD/lending_fUSD_20260513
["ID","MTS","AMOUNT","RATE_DAILY","PERIOD"]
[422163510,1778640650000,-226.31751,0.000412,120]
[422163487,1778640650000,-1107.202896,0.000412,120]
[422163463,1778640650000,-150.0,0.00041178,30]
[422163490,1778640650000,-500.346566,0.000412,120]
[422163465,1778640650000,-873.17157974,0.00041183,120]
[422163466,1778640650000,-330.14,0.00041193,120]
[422163464,1778640650000,-297.6931248,0.00041178,30]
[422163468,1778640650000,-563.17126166,0.00041199,60]
[422163467,1778640650000,-155.32286247,0.00041197,14]
[422163469,1778640650000,-493.513,0.000412,120]
[422163470,1778640650000,-600.0,0.000412,120]
[422163471,1778640650000,-160.0,0.000412,120]
[422163473,1778640650000,-1317.498208,0.000412,120]
[422163475,1778640650000,-300.0,0.00037158,2]
[422163472,1778640650000,-682435.58101338,0.000412,120]
[422163474,1778640650000,-1340.0,0.00025,5]
[422163485,1778640650000,-1107.202896,0.000412,120]
[422163495,1778640650000,-301.315249,0.000412,120]
[422163478,1778640650000,-644.0,0.000412,120]
[422163482,1778640650000,-1558.315031,0.000412,20]
[422163477,1778640650000,-17210.57077762,0.000412,120]
[422163484,1778640650000,-1558.315031,0.000412,20]
[422163479,1778640650000,-151.75,0.000412,120]
[422163476,1778640650000,-300.51123215,0.00037158,2]
[422163480,1778640650000,-214.86924866,0.000412,120]
[422163481,1778640650000,-1558.315031,0.000412,20]
[422163483,1778640650000,-1558.315031,0.000412,20]
[422163558,1778640651000,-229.008359,0.000412,120]
[422163555,1778640651000,-1154.057842,0.000412,28]
[422163559,1778640651000,-229.008359,0.000412,120]
[422163554,1778640651000,-1154.057842,0.000412,28]
[422163549,1778640651000,-151.0,0.000412,120]
[422163553,1778640651000,-1154.057842,0.000412,28]
[422163552,1778640651000,-1154.057842,0.000412,28]
[422163550,1778640651000,-154.609324,0.000412,120]
[422163548,1778640651000,-151.0,0.000412,120]
[422163545,1778640651000,-306.408303,0.000412,120]
[422163543,1778640651000,-306.408303,0.000412,120]
[422163551,1778640651000,-151.0,0.000412,120]
[422163557,1778640651000,-229.008359,0.000412,120]
[422163560,1778640651000,-153.823368,0.000412,120]
[422163561,1778640651000,-667.634439,0.000412,120]
[422163571,1778640651000,-218.08,0.00041233,120]
[422163562,1778640651000,-667.634439,0.000412,120]
[422163573,1778640651000,-5169.8371245,0.0004124,120]
[422163570,1778640651000,-151.0,0.000412,120]
[422163572,1778640651000,-218.08,0.00041233,120]
[422163567,1778640651000,-151.0,0.000412,120]
[422163564,1778640651000,-667.634439,0.000412,120]
[422163566,1778640651000,-667.634439,0.000412,120]
[422163565,1778640651000,-151.0,0.000412,120]
[422163563,1778640651000,-151.0,0.000412,120]
[422163539,1778640651000,-306.408303,0.000412,120]
[422163556,1778640651000,-229.008359,0.000412,120]
[422163544,1778640651000,-450.198313,0.000412,120]
[422163516,1778640651000,-151.0,0.000412,120]
[422163540,1778640651000,-450.198313,0.000412,120]
[422163523,1778640651000,-1030.700733,0.000412,7]
[422163522,1778640651000,-1030.700733,0.000412,7]
[422163515,1778640651000,-822.07522,0.000412,120]
[422163519,1778640651000,-151.0,0.000412,120]
[422163514,1778640651000,-822.07522,0.000412,120]
[422163520,1778640651000,-151.0,0.000412,120]
[422163521,1778640651000,-151.0,0.000412,120]
[422163517,1778640651000,-822.07522,0.000412,120]
[422163518,1778640651000,-822.07522,0.000412,120]
[422163524,1778640651000,-1030.700733,0.000412,7]
[422163526,1778640651000,-151.0,0.000412,120]
[422163527,1778640651000,-151.0,0.000412,120]
[422163528,1778640651000,-151.0,0.000412,120]
[422163569,1778640651000,-151.0,0.000412,120]
[422163525,1778640651000,-1030.700733,0.000412,7]
[422163533,1778640651000,-151.0,0.000412,120]
[422163530,1778640651000,-151.0,0.000412,120]
[422163531,1778640651000,-151.0,0.000412,120]
[422163532,1778640651000,-151.0,0.000412,120]
[422163534,1778640651000,-151.0,0.000412,120]
[422163536,1778640651000,-162.226956,0.000412,120]
[422163547,1778640651000,-151.0,0.000412,120]
[422163546,1778640651000,-450.198313,0.000412,120]
[422163538,1778640651000,-162.226956,0.000412,120]
[422163537,1778640651000,-162.226956,0.000412,120]
[422163535,1778640651000,-162.226956,0.000412,120]
[422163542,1778640651000,-450.198313,0.000412,120]
[422163541,1778640651000,-306.408303,0.000412,120]
[422163568,1778640651000,-159.974894,0.000412,120]
[422163529,1778640651000,-151.0,0.000412,120]
[422163576,1778640651000,-1000.0,0.00041244,120]
[422163606,1778640651000,-1000.0,0.00041244,120]
[422163607,1778640651000,-1000.0,0.00041244,120]
[422163608,1778640651000,-1000.0,0.00041244,120]
[422163611,1778640651000,-1000.0,0.00041244,120]
[422163615,1778640651000,-1000.0,0.00041244,120]
[422163616,1778640651000,-1000.0,0.00041244,120]
[422163613,1778640651000,-1000.0,0.00041244,120]
[422163612,1778640651000,-1000.0,0.00041244,120]
[422163620,1778640651000,-1000.0,0.00041244,120]
[422163619,1778640651000,-1000.0,0.00041244,120]
[422163621,1778640651000,-1000.0,0.00041244,120]
[422163618,1778640651000,-1000.0,0.00041244,120]
[422163622,1778640651000,-1000.0,0.00041244,120]
[422163614,1778640651000,-1000.0,0.00041244,120]
[422163617,1778640651000,-1000.0,0.00041244,120]
[422163624,1778640651000,-1000.0,0.00041244,120]
[422163626,1778640651000,-1000.0,0.00041244,120]
[422163623,1778640651000,-1000.0,0.00041244,120]
[422163625,1778640651000,-1000.0,0.00041244,120]
[422163629,1778640651000,-1000.0,0.00041244,120]
[422163631,1778640651000,-1000.0,0.00041244,120]
[422163630,1778640651000,-1000.0,0.00041244,120]
[422163627,1778640651000,-1000.0,0.00041244,120]
[422163628,1778640651000,-1000.0,0.00041244,120]
[422163632,1778640651000,-1000.0,0.00041244,120]
[422163634,1778640651000,-1000.0,0.00041244,120]
[422163574,1778640651000,-306.16834,0.00041243,120]
[422163604,1778640651000,-1000.0,0.00041244,120]
[422163603,1778640651000,-1000.0,0.00041244,120]
[422163633,1778640651000,-1000.0,0.00041244,120]
[422163601,1778640651000,-1000.0,0.00041244,120]
[422163605,1778640651000,-1000.0,0.00041244,120]
[422163579,1778640651000,-1000.0,0.00041244,120]
[422163580,1778640651000,-1000.0,0.00041244,120]
[422163575,1778640651000,-612.0,0.00041243,120]
[422163582,1778640651000,-1000.0,0.00041244,120]
[422163577,1778640651000,-1000.0,0.00041244,120]
[422163581,1778640651000,-1000.0,0.00041244,120]
[422163583,1778640651000,-1000.0,0.00041244,120]
[422163584,1778640651000,-1000.0,0.00041244,120]
[422163588,1778640651000,-1000.0,0.00041244,120]
[422163596,1778640651000,-1000.0,0.00041244,120]
[422163585,1778640651000,-1000.0,0.00041244,120]
[422163592,1778640651000,-1000.0,0.00041244,120]
[422163586,1778640651000,-1000.0,0.00041244,120]
[422163578,1778640651000,-1000.0,0.00041244,120]
[422163589,1778640651000,-1000.0,0.00041244,120]
[422163587,1778640651000,-1000.0,0.00041244,120]
[422163602,1778640651000,-1000.0,0.00041244,120]
[422163609,1778640651000,-1000.0,0.00041244,120]
[422163600,1778640651000,-1000.0,0.00041244,120]
[422163598,1778640651000,-1000.0,0.00041244,120]
[422163599,1778640651000,-1000.0,0.00041244,120]
[422163610,1778640651000,-1000.0,0.00041244,120]
[422163594,1778640651000,-1000.0,0.00041244,120]
[422163597,1778640651000,-1000.0,0.00041244,120]
[422163590,1778640651000,-1000.0,0.00041244,120]
[422163593,1778640651000,-1000.0,0.00041244,120]
[422163595,1778640651000,-1000.0,0.00041244,120]
[422163591,1778640651000,-1000.0,0.00041244,120]
[422163677,1778640652000,-151.0,0.00041259,120]
[422163669,1778640652000,-151.0,0.00041259,120]
[422163671,1778640652000,-151.0,0.00041259,120]
[422163672,1778640652000,-500.346566,0.00041259,120]
[422163668,1778640652000,-500.346566,0.00041259,120]
[422163670,1778640652000,-500.346566,0.00041259,120]
[422163667,1778640652000,-500.346566,0.00041259,120]
[422163664,1778640652000,-1107.202896,0.00041259,120]
[422163676,1778640652000,-327.548371,0.00041259,120]
[422163660,1778640652000,-1558.315031,0.00041259,20]
[422163673,1778640652000,-327.548371,0.00041259,120]
[422163661,1778640652000,-1558.315031,0.00041259,20]
[422163684,1778640652000,-226.31751,0.00041259,120]
[422163675,1778640652000,-327.548371,0.00041259,120]
[422163678,1778640652000,-151.0,0.00041259,120]
[422163680,1778640652000,-151.0,0.00041259,120]
[422163682,1778640652000,-151.0,0.00041259,7]
[422163683,1778640652000,-226.31751,0.00041259,120]
[422163679,1778640652000,-151.0,0.00041259,120]
[422163681,1778640652000,-151.0,0.00041259,7]
[422163686,1778640652000,-226.31751,0.00041259,120]
[422163685,1778640652000,-226.31751,0.00041259,120]
[422163688,1778640652000,-822.07522,0.00041259,120]
[422163663,1778640652000,-1107.202896,0.00041259,120]
[422163687,1778640652000,-151.0,0.00041259,30]
[422163674,1778640652000,-327.548371,0.00041259,120]
[422163665,1778640652000,-1107.202896,0.00041259,120]
[422163657,1778640652000,-151.0,0.00041259,120]
[422163662,1778640652000,-1558.315031,0.00041259,20]
[422163690,1778640652000,-151.00074091,0.00041259,120]
[422163645,1778640652000,-543.84,0.00041245,120]
[422163635,1778640652000,-1000.0,0.00041244,120]
[422163638,1778640652000,-1000.0,0.00041244,120]
[422163636,1778640652000,-1000.0,0.00041244,120]
[422163637,1778640652000,-1000.0,0.00041244,120]
[422163640,1778640652000,-1000.0,0.00041244,120]
[422163643,1778640652000,-152.0,0.00041245,120]
[422163644,1778640652000,-509.49,0.00041245,10]
[422163639,1778640652000,-1000.0,0.00041244,120]
[422163641,1778640652000,-151.0,0.00041245,120]
[422163642,1778640652000,-158.0,0.00041245,120]
[422163647,1778640652000,-151.0,0.00041245,120]
[422163659,1778640652000,-1558.315031,0.00041259,20]
[422163648,1778640652000,-151.0,0.00041245,14]
[422163658,1778640652000,-151.0,0.00041259,120]
[422163649,1778640652000,-151.0,0.00041245,14]
[422163646,1778640652000,-151.0,0.00041245,120]
[422163656,1778640652000,-151.0,0.00041259,120]
[422163652,1778640652000,-404.07195044,0.00041249,2]
[422163651,1778640652000,-556.1929901,0.00041249,2]
[422163650,1778640652000,-173.29936154,0.00041249,2]
[422163653,1778640652000,-388.70181642,0.00041249,2]
[422163654,1778640652000,-178.04,0.0004125,120]
[422163655,1778640652000,-151.0,0.00041259,120]
[422163666,1778640652000,-1107.202896,0.00041259,120]
[422163691,1778640652000,-822.07522,0.00041259,120]
[422163707,1778640652000,-150.0,0.00041272,6]
[422163689,1778640652000,-822.07522,0.00041259,120]
[422163723,1778640652000,-5100.0,0.00041283,37]
[422163724,1778640652000,-10944.0,0.00041283,30]
[422163726,1778640652000,-584.82962632,0.00041283,5]
[422163725,1778640652000,-401.16163483,0.00041283,2]
[422163733,1778640652000,-2875.5364797,0.00041283,2]
[422163729,1778640652000,-1210.0,0.00041283,2]
[422163727,1778640652000,-4999.999999,0.00041283,32]
[422163728,1778640652000,-49398.90478105,0.00041283,30]
[422163695,1778640652000,-261.516873,0.00041259,120]
[422163735,1778640652000,-991.87749482,0.00041283,2]
[422163731,1778640652000,-2060.89821708,0.00041283,5]
[422163730,1778640652000,-721.2374457,0.00041283,2]
[422163719,1778640652000,-4698.3802,0.0004128,120]
[422163732,1778640652000,-357.35465527,0.00041283,2]
[422163748,1778640652000,-255.5066381,0.00041283,2]
[422163747,1778640652000,-1014.18302644,0.00041283,5]
[422163736,1778640652000,-1559.81187068,0.00041283,2]
[422163738,1778640652000,-5327.6616729,0.00041283,2]
[422163742,1778640652000,-2022.95163431,0.00041283,2]
[422163739,1778640652000,-503.62094165,0.00041283,2]
[422163744,1778640652000,-2775.02130243,0.00041283,2]
[422163740,1778640652000,-1527.35028496,0.00041283,2]
[422163741,1778640652000,-2521.86522709,0.00041283,2]
[422163743,1778640652000,-287630.01072717,0.00041283,2]
[422163745,1778640652000,-155.17387401,0.00041283,2]
[422163746,1778640652000,-1720.2814031,0.00041283,2]
[422163737,1778640652000,-1056.36443234,0.00041283,2]
[422163721,1778640652000,-227.94587569,0.00041282,120]
[422163734,1778640652000,-1045.08404322,0.00041283,20]
[422163718,1778640652000,-157.57,0.0004128,120]
[422163693,1778640652000,-151.0,0.00041259,120]
[422163694,1778640652000,-151.0,0.00041259,120]
[422163717,1778640652000,-900.0,0.00041278,120]
[422163700,1778640652000,-11422.0,0.00041268,120]
[422163699,1778640652000,-3020.46243805,0.00041261,120]
[422163696,1778640652000,-1584.0,0.0004126,11]
[422163698,1778640652000,-1631.61,0.00041261,120]
[422163697,1778640652000,-1000.0,0.00041261,120]
[422163702,1778640652000,-200.0,0.00041272,5]
[422163712,1778640652000,-2260.298781,0.00041272,120]
[422163703,1778640652000,-157.72297697,0.00041272,2]
[422163701,1778640652000,-195.3544836,0.0004127,120]
[422163709,1778640652000,-1500.0,0.00041272,120]
[422163692,1778640652000,-822.07522,0.00041259,120]
[422163704,1778640652000,-882.48563277,0.00041272,120]
[422163720,1778640652000,-154.95124944,0.00041282,120]
[422163706,1778640652000,-1500.0,0.00041272,120]
[422163716,1778640652000,-181.0,0.00041276,120]
[422163715,1778640652000,-201.0,0.00041274,7]
[422163713,1778640652000,-9000.0,0.00041273,2]
[422163722,1778640652000,-308.48,0.00041283,120]
[422163710,1778640652000,-1500.0,0.00041272,120]
[422163711,1778640652000,-1134.65209572,0.00041272,120]
[422163708,1778640652000,-1500.0,0.00041272,120]
[422163705,1778640652000,-207.69,0.00041272,30]
[422163714,1778640652000,-162.09156742,0.00041274,120]
[422163766,1778640653000,-3798.091139,0.00041283,2]
[422163764,1778640653000,-1219.17117707,0.00041283,2]
[422163770,1778640653000,-2492.104632,0.00041283,2]
[422163769,1778640653000,-422.89223244,0.00041283,2]
[422163768,1778640653000,-542.688,0.00041283,2]
[422163767,1778640653000,-492.65507974,0.00041283,2]
[422163765,1778640653000,-12534.49338752,0.00041283,2]
[422163763,1778640653000,-883.15138334,0.00041283,2]
[422163762,1778640653000,-238774.95757052,0.00041283,2]
[422163752,1778640653000,-600.0,0.00041283,5]
[422163755,1778640653000,-150.54571756,0.00041283,2]
[422163756,1778640653000,-1221.0,0.00041283,4]
[422163757,1778640653000,-23525.84610595,0.00041283,2]
[422163759,1778640653000,-367.88585861,0.00041283,2]
[422163751,1778640653000,-12607.0210998,0.00041283,2]
[422163753,1778640653000,-500.0,0.00041283,5]
[422163749,1778640653000,-500.0,0.00041283,2]
[422163761,1778640653000,-2034.65154221,0.00041283,4]
[422163760,1778640653000,-150.0,0.00041283,2]
[422163750,1778640653000,-1293.57299064,0.00041283,2]
[422163771,1778640653000,-459.89,0.00041283,2]
[422163758,1778640653000,-13183.14374129,0.00041283,2]
[422163774,1778640653000,-377.35,0.00028978,2]
[422163754,1778640653000,-15902.35402825,0.00041283,2]
[422163776,1778640653000,-414.1,0.00028978,7]
[422163796,1778640653000,-63.2537174,0.00029143,2]
[422163795,1778640653000,-325.64,0.00029041,120]
[422163794,1778640653000,-414.1,0.00028978,2]
[422163797,1778640653000,-347.46,0.00013209,2]
[422163787,1778640653000,-414.1,0.00028978,30]
[422163789,1778640653000,-414.1,0.00028978,7]
[422163788,1778640653000,-414.1,0.00028978,2]
[422163793,1778640653000,-414.1,0.00028978,30]
[422163785,1778640653000,-414.1,0.00028978,2]
[422163792,1778640653000,-414.1,0.00028978,7]
[422163790,1778640653000,-414.1,0.00028978,30]
[422163773,1778640653000,325.63,0.00027397,120]
[422163791,1778640653000,-414.1,0.00028978,2]
[422163777,1778640653000,-414.1,0.00028978,30]
[422163779,1778640653000,-492.55383622,0.00037158,2]
[422163778,1778640653000,-670.53131543,0.00029313,2]
[422163780,1778640653000,-491.3141503,0.00037158,2]
[422163775,1778640653000,-36.75,0.00028978,2]
[422163783,1778640653000,-661.98314542,0.00029557,2]
[422163782,1778640653000,-325.63,0.00028219,120]
[422163784,1778640653000,-210.06482086,0.000209,2]
[422163781,1778640653000,-292359.12393978,0.00041283,2]
[422163786,1778640653000,-414.1,0.00028978,7]
[422163798,1778640673000,-1652.54,0.00013209,2]
[422163814,1778641594000,-300.0,0.00010699,2]
[422163815,1778641594000,-150.0,0.00010699,2]
[422163816,1778641594000,-9372.65,0.000107,2]
[422163813,1778641594000,-177.35,0.00010642,2]
[422163817,1778641597000,-10000.0,0.000107,2]
[422163819,1778641598000,-10000.0,0.000107,2]
[422163818,1778641598000,-10000.0,0.000107,2]
[422163820,1778641599000,-10000.0,0.000107,2]
[422163821,1778641600000,-10000.0,0.000107,2]
[422163822,1778641601000,-10000.0,0.000107,2]
[422163823,1778641602000,-10000.0,0.000107,2]
[422163824,1778641607000,-10000.0,0.000107,2]
[422163825,1778641608000,-10000.0,0.000107,2]
[422163826,1778641609000,-10000.0,0.000107,2]
[422163827,1778641609000,-10000.0,0.000107,2]
[422163830,1778641610000,-10000.0,0.000107,2]
[422163829,1778641610000,-10000.0,0.000107,2]
[422163828,1778641610000,-10000.0,0.000107,2]
[422163832,1778641611000,-10000.0,0.000107,2]
[422163831,1778641611000,-10000.0,0.000107,2]
[422163833,1778641612000,-10000.0,0.000107,2]
[422163834,1778641612000,-10000.0,0.000107,2]
[422163835,1778641612000,-10000.0,0.000107,2]
[422163838,1778641613000,-10000.0,0.000107,2]
[422163836,1778641613000,-10000.0,0.000107,2]
[422163837,1778641613000,-10000.0,0.000107,2]
[422163839,1778641616000,-209.45484516,0.000107,2]
[422163840,1778641626000,-1000.0,0.000107,2]
[422163841,1778641627000,-1000.0,0.000107,2]
[422163843,1778641628000,-1000.0,0.000107,2]
[422163842,1778641628000,-1000.0,0.000107,2]
[422163847,1778641629000,-397.84647269,0.000107,2]
[422163846,1778641629000,-366.34547958,0.000107,2]
[422163845,1778641629000,-150.60061714,0.000107,2]
[422163844,1778641629000,-849.39938286,0.000107,2]
[422163848,1778641760000,-250.0,0.00011706,2]
[422163849,1778641760000,-750.0,0.00012628,2]
[422163850,1778641762000,-1000.0,0.00012628,2]
[422163852,1778641763000,-250.0,0.00012877,2]
[422163851,1778641763000,-250.0,0.00012628,2]
[422163856,1778641794000,192.7,6.393e-05,2]
[422163859,1778641831000,-1000.0,0.00012891,2]
[422163861,1778641831000,-1200.0,0.00012891,2]
[422163862,1778641831000,-300.0,0.00012891,2]
[422163858,1778641831000,-192.7,0.00012535,2]
[422163866,1778641831000,-823.641,0.00013009,2]
[422163863,1778641831000,-44251.25,0.00012892,2]
[422163864,1778641831000,-927.55,0.00012892,2]
[422163865,1778641831000,-231841.69885616,0.00013009,2]
[422163860,1778641831000,-150.0,0.00012891,2]
[422163985,1778641838000,-605.25359839,0.00013208,2]
[422163957,1778641838000,-605.25359839,0.00013208,2]
[422163955,1778641838000,-605.25359839,0.00013208,2]
[422163962,1778641838000,-605.25359839,0.00013208,2]
[422163960,1778641838000,-605.25359839,0.00013208,2]
[422163949,1778641838000,-169.49951158,0.00013208,2]
[422163978,1778641838000,-605.25359839,0.00013208,2]
[422163977,1778641838000,-605.25359839,0.00013208,2]
[422163966,1778641838000,-605.25359839,0.00013208,2]
[422163974,1778641838000,-605.25359839,0.00013208,2]
[422163970,1778641838000,-605.25359839,0.00013208,2]
[422163972,1778641838000,-605.25359839,0.00013208,2]
[422163981,1778641838000,-605.25359839,0.00013208,2]
[422163968,1778641838000,-605.25359839,0.00013208,2]
[422163947,1778641838000,-500.0,0.00013208,2]
[422163964,1778641838000,-605.25359839,0.00013208,2]
[422163982,1778641838000,-605.25359839,0.00013208,2]
[422163989,1778641838000,-605.25359839,0.00013208,2]
[422163999,1778641838000,-605.25359839,0.00013208,2]
[422163987,1778641838000,-605.25359839,0.00013208,2]
[422163953,1778641838000,-425.6326613,0.00013208,2]
[422163937,1778641838000,-995.812,0.00013208,2]
[422163945,1778641838000,-500.0,0.00013208,2]
[422163906,1778641838000,-4730.75089867,0.00013009,2]
[422163905,1778641838000,-1327.52564012,0.00013009,2]
[422163908,1778641838000,-1466.25518156,0.00013009,2]
[422163907,1778641838000,-338.77160402,0.00013009,2]
[422163909,1778641838000,-545.85460464,0.00013009,2]
[422163911,1778641838000,-1258925.50221483,0.00013009,2]
[422163914,1778641838000,-214.91342137,0.00013024,2]
[422163918,1778641838000,-582.062605,0.00013109,2]
[422163922,1778641838000,-15422.99108353,0.00013109,2]
[422163926,1778641838000,-5000.0,0.00013109,2]
[422163916,1778641838000,-12502.40711406,0.00013108,2]
[422163920,1778641838000,-1018.70017636,0.00013109,2]
[422163924,1778641838000,-2697.33336735,0.00013109,2]
[422163928,1778641838000,-2500.0,0.00013109,2]
[422163932,1778641838000,-548.26245959,0.00013199,2]
[422163930,1778641838000,-4286.193,0.00013109,2]
[422164008,1778641838000,-605.25359839,0.00013208,2]
[422163934,1778641838000,-500.0,0.00013207,2]
[422163939,1778641838000,-1089.74768572,0.00013208,3]
[422163943,1778641838000,-500.0,0.00013208,2]
[422163951,1778641838000,-500.0,0.00013208,2]
[422163941,1778641838000,-500.0,0.00013208,2]
[422163995,1778641838000,-605.25359839,0.00013208,2]
[422164012,1778641838000,-605.25359839,0.00013208,2]
[422164001,1778641838000,-605.25359839,0.00013208,2]
[422164059,1778641838000,-1500.01703501,0.00013208,2]
[422164055,1778641838000,-1500.01703501,0.00013208,2]
[422164045,1778641838000,-605.25359839,0.00013208,2]
[422164057,1778641838000,-1500.01703501,0.00013208,2]
[422164047,1778641838000,-1500.01703501,0.00013208,2]
[422164049,1778641838000,-1500.01703501,0.00013208,2]
[422164061,1778641838000,-1500.01703501,0.00013208,2]
[422164063,1778641838000,-1500.01703501,0.00013208,2]
[422164075,1778641838000,-1500.01703501,0.00013208,2]
[422164043,1778641838000,-605.25359839,0.00013208,2]
[422164065,1778641838000,-1500.01703501,0.00013208,2]
[422164082,1778641838000,-1500.01703501,0.00013208,2]
[422164067,1778641838000,-1500.01703501,0.00013208,2]
[422164069,1778641838000,-1500.01703501,0.00013208,2]
[422164071,1778641838000,-1500.01703501,0.00013208,2]
[422164073,1778641838000,-1500.01703501,0.00013208,2]
[422164084,1778641838000,-1500.01703501,0.00013208,2]
[422164086,1778641838000,-1500.01703501,0.00013208,2]
[422164088,1778641838000,-1500.01703501,0.00013208,2]
[422163997,1778641838000,-605.25359839,0.00013208,2]
[422164079,1778641838000,-1500.01703501,0.00013208,2]
[422164053,1778641838000,-1500.01703501,0.00013208,2]
[422164077,1778641838000,-1500.01703501,0.00013208,2]
[422164041,1778641838000,-605.25359839,0.00013208,2]
[422164010,1778641838000,-605.25359839,0.00013208,2]
[422164052,1778641838000,-1500.01703501,0.00013208,2]
[422163991,1778641838000,-605.25359839,0.00013208,2]
[422164004,1778641838000,-605.25359839,0.00013208,2]
[422163993,1778641838000,-605.25359839,0.00013208,2]
[422164007,1778641838000,-605.25359839,0.00013208,2]
[422164006,1778641838000,-605.25359839,0.00013208,2]
[422164014,1778641838000,-605.25359839,0.00013208,2]
[422164024,1778641838000,-605.25359839,0.00013208,2]
[422164025,1778641838000,-605.25359839,0.00013208,2]
[422164002,1778641838000,-605.25359839,0.00013208,2]
[422164016,1778641838000,-605.25359839,0.00013208,2]
[422164028,1778641838000,-605.25359839,0.00013208,2]
[422164018,1778641838000,-605.25359839,0.00013208,2]
[422164029,1778641838000,-605.25359839,0.00013208,2]
[422164019,1778641838000,-605.25359839,0.00013208,2]
[422164035,1778641838000,-605.25359839,0.00013208,2]
[422164021,1778641838000,-605.25359839,0.00013208,2]
[422164033,1778641838000,-605.25359839,0.00013208,2]
[422164031,1778641838000,-605.25359839,0.00013208,2]
[422164037,1778641838000,-605.25359839,0.00013208,2]
[422164039,1778641838000,-605.25359839,0.00013208,2]
[422164180,1778641839000,-500.0,0.00013698,2]
[422164188,1778641839000,-500.0,0.00013698,2]
[422164177,1778641839000,-552.54434627,0.00013698,2]
[422164186,1778641839000,-500.0,0.00013698,2]
[422164175,1778641839000,-500.0,0.00013698,2]
[422164165,1778641839000,-12502.40711403,0.00013506,2]
[422164171,1778641839000,-500.0,0.00013698,2]
[422164169,1778641839000,-2697.33336735,0.00013621,2]
[422164163,1778641839000,-150.0,0.00013488,2]
[422164182,1778641839000,-500.0,0.00013698,2]
[422164151,1778641839000,-150.07363201,0.00013444,2]
[422164173,1778641839000,-526.19319937,0.00013698,2]
[422164184,1778641839000,-500.0,0.00013698,2]
[422164214,1778641839000,-500.0,0.00013698,2]
[422164190,1778641839000,-500.0,0.00013698,2]
[422164192,1778641839000,-279.88525232,0.00013698,2]
[422164216,1778641839000,-500.0,0.00013698,2]
[422164210,1778641839000,-500.0,0.00013698,2]
[422164196,1778641839000,-500.0,0.00013698,2]
[422164194,1778641839000,-500.0,0.00013698,2]
[422164198,1778641839000,-500.0,0.00013698,2]
[422164200,1778641839000,-500.0,0.00013698,2]
[422164218,1778641839000,-500.0,0.00013698,2]
[422164206,1778641839000,-503.35448234,0.00013698,2]
[422164208,1778641839000,-500.0,0.00013698,2]
[422164161,1778641839000,-150.0,0.00013488,2]
[422164167,1778641839000,-15422.99108349,0.00013507,2]
[422164159,1778641839000,-150.0,0.00013488,2]
[422164107,1778641839000,-1500.01703501,0.00013208,2]
[422164157,1778641839000,-150.0,0.00013488,2]
[422164202,1778641839000,-356.17682839,0.00013698,2]
[422164092,1778641839000,-1500.01703501,0.00013208,2]
[422164094,1778641839000,-1500.01703501,0.00013208,2]
[422164105,1778641839000,-1500.01703501,0.00013208,2]
[422164109,1778641839000,-1493.76696403,0.00013208,2]
[422164103,1778641839000,-1500.01703501,0.00013208,2]
[422164098,1778641839000,-1500.01703501,0.00013208,2]
[422164096,1778641839000,-1500.01703501,0.00013208,2]
[422164111,1778641839000,-1493.76696403,0.00013208,2]
[422164113,1778641839000,-1493.76696403,0.00013208,2]
[422164120,1778641839000,-1493.76696403,0.00013208,2]
[422164133,1778641839000,-1493.76696403,0.00013208,2]
[422164137,1778641839000,-2000.0,0.00013209,2]
[422164140,1778641839000,-12502.40711403,0.00013307,2]
[422164115,1778641839000,-1493.76696403,0.00013208,2]